Cogmind - Beta 11 @@@ ROGUE MODE // 2022.04.15 @ 21:04:04 Player: Decinym Result: Destroyed by DAS Turret with DAS Cannon Performance ------------- Evolutions (1) 500 Regions Visited (5) 1000 Robots Destroyed (34) 170 Value Destroyed (770) 770 Prototype IDs (23) 460 Alien Tech Used (0) 0 Bonus (-644) -644 TOTAL SCORE: 2256 Bonus ------- Aligned with FarCom 300 Friendly Fire -944 Cogmind --------- Core Integrity 0/400 Matter 180/300 Energy 250/250 System Corruption 0% Temperature Cool (58) Movement Core (500) Ox9 Location -9/Exiles Parts ------- > --- POWER (1) -------- Ion Engine > --- PROPULSION (2) --- (None) > --- UTILITY (4) ------ Large Storage Unit > --- WEAPON (2) ------- Improved Light Cannon > --- INVENTORY (15) --- Medium Matter Pod (0) Medium Matter Pod (0) Shotgun Mini Grenade Launcher Plasma Cutter Flail Stasis Trap (100%) Peak State ------------ > --- POWER ------------ Improved Ion Engine > --- PROPULSION ------- Light Treads Light Treads > --- UTILITY ---------- Heat Sink Large Storage Unit Hardened Light Armor Plating Hardened Light Armor Plating > --- WEAPON ----------- Shotgun Shotgun > --- INVENTORY -------- Improved Targeting Computer Improved Targeting Computer Hardened Light Armor Plating Hardened Light Armor Plating Shotgun Shotgun Improved Light Cannon Rocket Launcher Mini Grenade Launcher Plasma Cutter Flail Stasis Trap Deploy-a-Sentry Deploy-a-Sentry Deploy-a-Sentry [Rating: 18] Favorites ----------- Power Improved Ion Engine Engine Improved Ion Engine Propulsion Light Treads Treads Light Treads Leg Aluminum Leg Utility Hardened Light Armor Plating Device Heat Sink Storage Large Storage Unit Protection Hardened Light Armor Plating Weapon Shotgun Energy Gun Medium Laser Ballistic Gun Shotgun Ballistic Cannon Improved Light Cannon Launcher Rocket Launcher Special Weapon Plasma Cutter Build | -11 -10 -10 -9 -9 -9 ------- Run | Scr Mat Min Mat Min Exi Slots Evolved 2 | . . . 2 . . Power . | . . . . . . Propulsion . | . . . . . . Utility 2 | . . . 2 . . Weapon . | . . . . . . Parts Attached 35 | . 12 1 6 1 15 Power 3 | . 1 . 1 . 1 Engine 3 | . 1 . 1 . 1 Core . | . . . . . . Reactor . | . . . . . . Propulsion 7 | . 4 . 1 . 2 Treads 5 | . 2 . 1 . 2 Leg 2 | . 2 . . . . Wheel . | . . . . . . Hover . | . . . . . . Flight . | . . . . . . Utility 10 | . 4 . 2 1 3 Device 3 | . 2 . . 1 . Storage 2 | . 2 . . . . Processor . | . . . . . . Hackware . | . . . . . . Protection 5 | . . . 2 . 3 Artifact . | . . . . . . Weapon 15 | . 3 1 2 . 9 Energy Gun 2 | . 2 . . . . Energy Cannon . | . . . . . . Ballistic Gun 8 | . 1 1 2 . 4 Ballistic Cannon 1 | . . . . . 1 Launcher 3 | . . . . . 3 Special Weapon 1 | . . . . . 1 Impact Weapon . | . . . . . . Slashing Weapon . | . . . . . . Piercing Weapon . | . . . . . . Special Melee Weapon . | . . . . . . Unidentified Prototypes . | . . . . . . Parts Lost 13 | . . . . . 13 Power 1 | . . . . . 1 Propulsion 3 | . . . . . 3 Utility 5 | . . . . . 5 Weapon 4 | . . . . . 4 Highest Loss Streak 5 | . . . . . 5 To Critical Strikes 5 | . . . . . 5 Average Slot Usage (%) 95 | . 96 100 99 100 89 Engine 10 | . 14 14 11 11 8 Treads 18 | . 12 28 22 22 15 Leg 2 | . 15 . . . . Device 13 | . 10 14 11 14 13 Storage 11 | . 14 14 11 11 11 Protection 13 | . . . 22 18 19 Energy Gun 4 | . 19 14 . . . Ballistic Gun 16 | . 8 14 20 22 16 Ballistic Cannon 1 | . . . . . 3 Naked Turns . | . . . . . . Heaviest Build 45 | 13 28 28 44 44 45 Greatest Support 40 | 20 40 40 40 40 40 Greatest Overweight (x) 12 | . . . 1 1 12 Average Overweight (x) . | . . . . 1 2 Largest Inventory Capacity 15 | . 15 15 15 15 15 Average Capacity 14 | . 12 15 15 15 15 Most Carried 15 | . 15 15 15 15 15 Average Carried 12 | . 10 14 14 15 11 Final Capacity 15 | 8 15 15 15 15 15 Final Carried 15 | 6 15 15 15 15 7 Class Distribution -------------------- 97% | Mutant Dominant Class ---------------- Mutant | -10/Materials Mutant | -10/Mines Mutant | -9/Materials Mutant | -9/Mines Mutant | -9/Exiles Resources | -11 -10 -10 -9 -9 -9 ----------- Run | Scr Mat Min Mat Min Exi Matter Collected 1194 | 199 138 74 260 154 369 Remotely . | . . . . . . Salvage Created 1044 | . 474 63 334 135 38 Parts 59 | . 29 6 16 8 . Haulers Intercepted . | . . . . . . Recyclers Shooed 3 | . 1 . 1 1 . Parts Field Recycled . | . . . . . . Retrieved Matter . | . . . . . . Parts Self-Destructed . | . . . . . . Prevented . | . . . . . . Kills | -11 -10 -10 -9 -9 -9 ------- Run | Scr Mat Min Mat Min Exi Combat Hostiles Destroyed 35 | . 16 3 7 8 1 Guns 35 | . 16 3 7 8 1 Classes Destroyed 7 | . 2 1 2 2 . Builder 2 | . . . . 2 . Tunneler 1 | . . 1 . . . Recycler 1 | . . . 1 . . Swarmer 12 | . 6 3 . 3 . Grunt 15 | . 10 . 5 . . Sentry 2 | . . . 2 . . Assembled 11 | . . . . 5 6 Best Kill Streak 6 | . 6 3 5 3 1 Combat Bots Only 6 | . 6 3 5 3 1 Max Kills in Single Turn 6 | . 1 1 1 2 6 Gunslinging 1 | . . . . 1 . Exploded . | . . . . . . Melee . | . . . . . . Uniques/NPCs Destroyed 2 | . . . . . 2 EX-HEX (-9/Exiles) 8R-AWN (-9/Exiles) Combat | -11 -10 -10 -9 -9 -9 -------- Run | Scr Mat Min Mat Min Exi Damage Taken 3288 | . 653 212 558 118 1747 Core 618 | . 151 36 59 . 372 Absorbed by Shields 4 | . . . . 4 . Regen/Repaired (Parts) 65 | . 65 . . . . Core Remaining (%) 62 | 100 . 25 . . . Volleys Fired 149 | . 48 13 25 18 45 Largest 2 | . 2 2 2 2 2 Hottest 90 | . 90 70 46 46 72 Shots Fired 298 | . 96 26 50 36 90 Gun 288 | . 96 26 50 36 80 Cannon 5 | . . . . . 5 Launcher 5 | . . . . . 5 Special . | . . . . . . Kinetic 216 | . 32 13 50 36 85 Thermal 77 | . 64 13 . . . Explosive 5 | . . . . . 5 Electromagnetic . | . . . . . . Robot Hit Streak 10 | . 9 4 6 10 10 Robot Miss Streak 9 | . 6 2 4 4 9 Penetration Max . | . . . . . . Secondary Targets 9 | . 5 2 1 1 . Max Gunslinging Chain 1 | . 1 1 1 1 . Shots Hit Robots 210 | . 57 14 38 28 73 Core Hits 100 | . 31 5 18 19 27 Critical Kills . | . . . . . . Critical Parts Destroyed 1 | . . . 1 . . Critical Strikes 4 | . 3 . 1 . . Burn 3 | . 3 . . . . Destroy 1 | . . . 1 . . Melee Attacks . | . . . . . . Impact . | . . . . . . Slashing . | . . . . . . Piercing . | . . . . . . Sneak Attacks . | . . . . . . Combat Hostiles . | . . . . . . Follow-up Attacks . | . . . . . . Damage Inflicted 3373 | . 696 165 539 412 1561 Guns 2967 | . 696 165 539 412 1155 Cannons 22 | . . . . . 22 Explosions 384 | . . . . . 384 Melee . | . . . . . . Ramming . | . . . . . . Kinetic 2349 | . 156 65 539 412 1177 Thermal 640 | . 540 100 . . . Explosive 384 | . . . . . 384 Electromagnetic . | . . . . . . Impact . | . . . . . . Slashing . | . . . . . . Piercing . | . . . . . . Highest Corruption . | . . . . . . Average Corruption . | . . . . . . Corruption Purged . | . . . . . . Corruption Blocked . | . . . . . . Overload Shots . | . . . . . . Overflow Damage 8 | . . . . . 8 Projectiles . | . . . . . . Explosions 8 | . . . . . 8 Melee . | . . . . . . Knockbacks 1 | . . . . . 1 Impact . | . . . . . . Kinetic 1 | . . . . . 1 Secondary . | . . . . . . Self-Inflicted Damage . | . . . . . . Shots . | . . . . . . Rammed . | . . . . . . Targets Rammed . | . . . . . . Kicked . | . . . . . . Crushed . | . . . . . . Highest Temperature 246 | . 246 10 19 . 58 Average Temperature 69 | . 80 7 5 . 41 Received Heat Transfer 501 | . 240 . 261 . . Siege Activations . | . . . . . . Robots Corrupted . | . . . . . . Combat Hostiles . | . . . . . . Parts Fried . | . . . . . . Impact Corruptions . | . . . . . . Robots Melted . | . . . . . . Combat Hostiles . | . . . . . . Parts Melted 4 | . 4 . . . . Heat Transferred 2039 | . 1743 296 . . . Parts Sabotaged . | . . . . . . Parts Stolen . | . . . . . . Parts Stripped . | . . . . . . Power Chain Reactions . | . . . . . . Missiles Intercepted . | . . . . . . Alert | -11 -10 -10 -9 -9 -9 ------- Run | Scr Mat Min Mat Min Exi Peak Influence 361 | . 361 75 235 74 . Initial 31 | . . 31 . 19 . Average 69 | . 156 37 122 20 . Maximum Alert Level 1 | . 1 . 1 . . Low Security (%) 86 | . 65 100 60 100 . Level 1 13 | . 34 . 39 . . Level 2 . | . . . . . . Level 3 . | . . . . . . Level 4 . | . . . . . . Level 5 . | . . . . . . High Security . | . . . . . . Max Security . | . . . . . . Squads Dispatched 5 | . 3 . 1 1 . Investigation 1 | . 1 . . . . Extermination . | . . . . . . Reinforcement 4 | . 2 . 1 1 . Assault . | . . . . . . Garrison . | . . . . . . Intercept . | . . . . . . Searches Triggered . | . . . . . . Construction Impeded 1 | . . . . 1 . Haulers Reinforced . | . . . . . . Active Scanning Responses . | . . . . . . Cargo Convoy Interrupts . | . . . . . . Stealth | -11 -10 -10 -9 -9 -9 --------- Run | Scr Mat Min Mat Min Exi Distress Signals 3 | . 1 . 2 . . Communications Jammed . | . . . . . . Distress Signals . | . . . . . . Times Spotted 56 | . 27 3 16 8 2 Peak Tracking Total 6 | . 6 3 5 3 3 Tactical Retreats 4 | . . . 1 1 2 Traps | -11 -10 -10 -9 -9 -9 ------- Run | Scr Mat Min Mat Min Exi Traps Triggered 2 | . 2 . . . . Indirectly . | . . . . . . Trap Hack Attempts . | . . . . . . Triggered . | . . . . . . Disarmed . | . . . . . . Reprogrammed . | . . . . . . Reused . | . . . . . . Traps Extracted . | . . . . . . Installed . | . . . . . . Triggered . | . . . . . . Most Traps Carried 1 | . . 1 1 1 1 Machines | -11 -10 -10 -9 -9 -9 ---------- Run | Scr Mat Min Mat Min Exi Machines Disabled 6 | . . . . . 6 Max in Single Turn 2 | . . . . . 2 Machines Sabotaged . | . . . . . . Garrisons Compromised . | . . . . . . Overloaded Fab Kills . | . . . . . . Hacking | -11 -10 -10 -9 -9 -9 --------- Run | Scr Mat Min Mat Min Exi Machines Accessed 7 | . 4 . 1 . 2 Terminals 4 | . 3 . 1 . . Fabricators . | . . . . . . Repair Stations 1 | . 1 . . . . Recycling Units . | . . . . . . Scanalyzers . | . . . . . . Garrison Access . | . . . . . . Total Hacks 12 | . 9 . 1 . 2 Successful 7 | . 4 . 1 . 2 Failed 5 | . 5 . . . . Catastrophic . | . . . . . . Database Lockouts . | . . . . . . Manual 6 | . 4 . 1 . 1 Terminals 8 | . 7 . 1 . . Fabricators . | . . . . . . Repair Stations 2 | . 2 . . . . Recycling Units . | . . . . . . Scanalyzers . | . . . . . . Garrison Access . | . . . . . . Terminal Hacks 4 | . 1 . 1 . 2 Record 1 | . . . . . 1 Branch Access Points 1 | . . . 1 . . Unreport Threat 1 | . 1 . . . . EX-Prototype ID Bank 1 | . . . . . 1 Fabricator Hacks . | . . . . . . Repair Station Hacks 2 | . 2 . . . . Scan Component 1 | . 1 . . . . Repair 1 | . 1 . . . . Recycling Unit Hacks . | . . . . . . Scanalyzer . | . . . . . . Garrison Access Hacks . | . . . . . . Unauthorized Hacks 1 | . 1 . . . . Terminals 1 | . 1 . . . . Assimilate 1 | . 1 . . . . Fabricators . | . . . . . . Repair Stations . | . . . . . . Recycling Units . | . . . . . . Scanalyzers . | . . . . . . Garrison Access . | . . . . . . Data Cores Recovered . | . . . . . . Used . | . . . . . . Hacking Detections 3 | . 3 . . . . Full Trace Events 1 | . 1 . . . . Feedback Events . | . . . . . . Feedback Blocked . | . . . . . . Robot Schematics Acquired . | . . . . . . Robots Built . | . . . . . . Authchips . | . . . . . . Time . | . . . . . . Total Robot Build Rating . | . . . . . . Part Schematics Acquired . | . . . . . . Parts Built . | . . . . . . Authchips . | . . . . . . Time . | . . . . . . Total Part Build Rating . | . . . . . . Parts Repaired 1 | . 1 . . . . Time 26 | . 26 . . . . Parts Recycled . | . . . . . . Recycled Matter . | . . . . . . Retrieved Matter . | . . . . . . Retrieved Components . | . . . . . . Parts Scanalyzed . | . . . . . . Part Schematics Acquired . | . . . . . . Parts Damaged . | . . . . . . Bothacking | -11 -10 -10 -9 -9 -9 ------------ Run | Scr Mat Min Mat Min Exi Used RIF Installer . | . . . . . . Robots Hacked . | . . . . . . Non-combat . | . . . . . . Combat . | . . . . . . Robot Hacks Applied . | . . . . . . Relay Couplers Released . | . . . . . . Fabnet Peak Effective % . | . . . . . . Robots Rewired . | . . . . . . Allies Hacked . | . . . . . . Hacks Repelled . | . . . . . . Allies | -11 -10 -10 -9 -9 -9 -------- Run | Scr Mat Min Mat Min Exi Total Allies 1 | . 1 . . . . Largest Group 1 | . 1 1 1 . . Highest-Rated Group 10 | . 10 10 10 . . Highest-Rated Ally 10 | . 10 10 10 . . Total Orders . | . . . . . . Ally Attacks 12 | . . . . . 12 Total Damage 590 | . . . . . 590 Kills 3 | . . . . . 3 Allies Corrupted 1 | . . . . . 1 Allies Melted . | . . . . . . Turrets Deployed 3 | . . . . . 3 Intel | -11 -10 -10 -9 -9 -9 ------- Run | Scr Mat Min Mat Min Exi Robot Analysis Total . | . . . . . . Derelict Logs Recovered 2 | . . 1 . 1 . Drone Launches . | . . . . . . Drone Recoveries . | . . . . . . Exploration | -11 -10 -10 -9 -9 -9 ------------- Run | Scr Mat Min Mat Min Exi Turns Passed 5481 | . 734 886 460 1214 2187 Spaces Moved 2197 | 1 369 525 172 444 686 Core 70 | . . . . . 70 Treads 1938 | . 181 525 172 444 616 Legs 189 | 1 188 . . . . Wheels . | . . . . . . Hover . | . . . . . . Flight . | . . . . . . Fastest Speed 120 | 120 120 160 160 240 240 Average Speed 218 | 120 139 160 213 240 293 Slowest Speed 650 | 120 160 160 240 240 650 Overloaded Moves . | . . . . . . Propulsion Burnouts . | . . . . . . Robots Hopped . | . . . . . . Cave-ins Triggered . | . . . . . . Exploration Rate (%) 52 | 2 66 98 18 70 61 Regions Visited 5 Branch Regions 3 Pre-discovered Areas 1 | . . . . . 1 Known Exits Taken 1 | . . . 1 . . Unknown Exits Taken 4 | 1 1 1 . 1 . Scrap Searched 5 | . . 2 . 3 . Spaces Dug . | . . . . . . Terrain Destroyed 16 | . . . . . 16 Melee . | . . . . . . Projectile . | . . . . . . AOE 16 | . . . . . 16 Terrain Rammed . | . . . . . . Walls Destroyed . | . . . . . . Machines Disabled . | . . . . . . Actions | -11 -10 -10 -9 -9 -9 --------- Run | Scr Mat Min Mat Min Exi Total 2593 | . 495 547 218 558 775 Wait 152 | . 49 4 . 93 6 Move 2192 | . 368 524 171 443 686 Hop . | . . . . . . Pick Up 30 | . 10 2 7 1 10 Fast Attach 11 | . 6 . 2 1 2 Attach 8 | . . . 2 . 6 Detach . | . . . . . . Swap 16 | . 6 1 2 . 7 Drop 35 | . 8 3 9 2 13 Fire 149 | . 48 13 25 18 45 Melee . | . . . . . . Ram . | . . . . . . Kick . | . . . . . . Crush . | . . . . . . Escape Stasis . | . . . . . . Rewire . | . . . . . . Trap . | . . . . . . Miscellaneous . | . . . . . . Route ------- -11/Scrapyard -10/Materials (discovered 3 exits: *Mat x2 / [*Min]) -10/Mines (discovered 2 exits: *Mat x2) -9/Materials (discovered 4 exits: *Min x2 / *Sto x2) -9/Mines (discovered 3 exits: [*Mat x2] / *Exi) -9/Exiles History --------- Turn | Location | Event 1 | -11/Scrapyard | Discovered new exit (range 0) 1 | -11/Scrapyard | Entered Materials 222 | -10/Materials | Core integrity fell below 50% 348 | -10/Materials | Repaired Med. Laser 400 | -10/Materials | Discovered new exit (range 14) 551 | -10/Materials | Discovered new exit (range 4) 591 | -10/Materials | Build established: Mutant 668 | -10/Materials | Discovered new exit (range 7) 735 | -10/Materials | Entered Mines 735 | -10/Mines | Accompanied by 1 ally 764 | -10/Mines | Learned Materials trap positions 779 | -10/Mines | Found a hidden stash of uninstalled traps 1044 | -10/Mines | Discovered new exit (range 8) 1203 | -10/Mines | Received a Rocket Launcher from a helpful Derelict 1245 | -10/Mines | Discovered new exit (range 8) 1621 | -10/Mines | Entered Materials 1621 | -9/Materials | Accompanied by 1 ally 1621 | -9/Materials | Evolved 2 slots: Utility x2 1622 | -9/Materials | Loaded intel: 21 trap records 1623 | -9/Materials | Discovered new exit (range 9) 1750 | -9/Materials | Identified exit to Mines 1750 | -9/Materials | Identified exit to Storage 2081 | -9/Materials | Entered Mines 2098 | -9/Mines | Met a Derelict bent on vengeance 2101 | -9/Mines | Learned Materials terminal intel 2378 | -9/Mines | Deemed a non-threat by the Exiles lab entrance 2381 | -9/Mines | Discovered new exit (range 5) 2465 | -9/Mines | Discovered new exit (range 5) 2559 | -9/Mines | Assembled infested the area 3228 | -9/Mines | Discovered new exit (range 15) 3295 | -9/Mines | Entered Exiles 3351 | -9/Exiles | Met 8R-AWN 3394 | -9/Exiles | Met EX-HEX 3478 | -9/Exiles | Met EX-BIN 3502 | -9/Exiles | Met EX-DEC 3564 | -9/Exiles | Learned location of Zion (-6) 3653 | -9/Exiles | Aligned with FarCom system 3655 | -9/Exiles | Given EX-Vault access code 3715 | -9/Exiles | Opened EX-Vault 3735 | -9/Exiles | Found Deploy-a-Sentry 3742 | -9/Exiles | Found Deploy-a-Sentry 3745 | -9/Exiles | Found Deploy-a-Sentry 3792 | -9/Exiles | Warned to stay clear of 0b10 Research branches 3892 | -9/Exiles | DAS Turret deployed 4109 | -9/Exiles | DAS Turret deployed 4188 | -9/Exiles | DAS Turret deployed 4559 | -9/Exiles | Attacked by the Exiles 4561 | -9/Exiles | Allies destroyed EX-HEX 4637 | -9/Exiles | Lost 3 parts (1p1u1w) 4662 | -9/Exiles | Core integrity fell below 50% 4698 | -9/Exiles | Destroyed 8R-AWN 4722 | -9/Exiles | Lost 5 parts (2n1u2w) 5471 | -9/Exiles | Core integrity fell below 20% 5482 | -9/Exiles | Destroyed by DAS Turret with DAS Cannon Last Messages --------------- 04702_ Acquired 9 matter. 04709_ Acquired 5 matter. 04715_ Acquired 9 matter. 04735_ Acquired 2 matter. 04774_ Acquired 4 matter. 04787_ Acquired 46 matter. 05157_ Acquired Lgt. Treads. 05161_ Acquired Ion Engine. 05345_ Rigged Rnf. Deuterium Engine explodes. 05358_ Acquired 7 matter. 05377_ Acquired 18 matter. 05422_ Acquired 10 matter. 05435_ Acquired 3 matter. 05466_ Machine disabled. 05472_ Lgt. Treads destroyed. 05474_ Heat Sink destroyed. 05478_ Hrd. Light Armor Plating destroyed. 05480_ Rocket Launcher destroyed. 05480_ Hrd. Light Armor Plating destroyed. 05480_ Knocked back. Map ----- +----------------------------------------------------+ | ???????????"" ?????????#" "X" """"??????? | | ???????????"" "#????????#" """ #??????? | | ??????????? ""?????????#" """""""""#??????? | | ????????????" "?????????##" ###########??????? | | #???????????# #????????##"" #????????????????? | | #####????### ###?######"" #???????##???????? | | """#####X# #"###""""""" ##??????? ##?????? | | """""" " "" ##???####"######? | | "" """ " #####"""" """"## | | " " " """ """"# | | " " | | ## """ | | ?## " | | ??## " " | | ???##" | | ????#""" """""" ! | | ???##" ######""" ! | | ???#"" ""##????#####""" !! ! | | ??##""" """##?????????##""" !!! | | ??#"""% % """##???????????#"""" ! | | ??#""" ""#???????????##"" | | ??#" % ########??####"""" | | ??#""" ##aaa####""" !! | | ??#"" % """" | | ??##"" % | | ???#"""" @ | | ???## % " | | ????#" % % "" " * | | ????#"""" ""## ##""" " " "" % | | ????#"" ""#### ######""" """## | | ????#" " ""##??# #????###""""### | | ????#""" """#??## ####???######?# # | | ????## ""##??#! " #??????????# ## | | ?????#"" """##???#" #??????????#####? | | ?????##""" ##????#" "#???????????????? | | ??????##"""" ##?????#!!""!"#???????????????? | | ????????## #??????########???????????????? | | ??????????#### ##?????????????????????????????? | | ?????????????## #??????????????????????????????? | | ??????????????? ???????????????????????????????? | | ?????????????????????????????????????????????????? | | ?????????????????????????????????????????????????? | | ?????????????????????????????????????????????????? | | ?????????????????????????????????????????????????? | | ?????????????????????????????????????????????????? | | ?????????????????????????????????????????????????? | | ?????????????????????????????????????????????????? | | ?????????????????????????????????????????????????? | | ?????????????????????????????????????????????????? | | ?????????????????????????????????????????????????? | +----------------------------------------------------+ Best States ------------- Heat Dissipation 38 Energy Generation 12 Energy Capacity 265 Matter Stores 300 Matter Capacity 300 Sight Range 16 Terrain Scan Density 10 Armor Coverage 300 Evasion (%) 55 Recoil Reduction 2 Item Schematics ----------------- None Robot Schematics ------------------ None Fabricated ------------ Nothing Alien Tech Used ----------------- None Achievements -------------- None Challenges ------------ None Game ------ Seed WeldingIonicChip Manual? 0 Play Time 00:26:07 Cumulative 312.0 hours Start 2022.04.15 @ 20:36:26 End 2022.04.15 @ 21:04:04 Sessions 1 Manual Loads 0 Difficulty Rogue Special Mode None Game No. 347 Rogue 347 Adventurer 0 Explorer 0 Win Type - Total 28 Types 17/3/2/1/2/0/3/0/0 Lore% 85 Gallery% 82 Achievement% 80 Wizard Run 0 Options --------- ASCII 0 Keyboard 0 Movement Arrows Keybinds 0 Fullscreen 2 Font 18/SmallcapsGlow Map View 76x50 Tactical HUD 1 Map Filters NONE Filters NONE Steam 1 RUN: 905b4caa-8e42-4f5d-aeb2-4039331ce1f5